[Event "44th Chess Olympiad Open 2022"]
[Site "Chennai"]
[Date "2022.08.01"]
[Round "4.3"]
[White "Vallejo Pons, Francisco"]
[Black "Sethuraman, S.P..."]
[Result "1/2-1/2"]
[WhiteElo "2702"]
[BlackElo "2623"]
[Annotator "TA"]
[PlyCount "61"]
[EventDate "2022.??.??"]
[TimeControl "60"]

{[%evp 9,61,15,18,14,9,6,16,8,0,0,17,16,17,23,22,20,12,20,26,13,1,18,14,0,0,0,
0,0,0,0,3,0,0,-8,-8,-8,-8,-8,-8,-8,-8,-8,-2,-8,-2,-4,-2,-2,-2,-2,-2,-9,0,0]} 1.
e4 {[%emt 0:00:08]} e5 {[%emt 0:00:20]} 2. Nf3 {[%emt 0:00:05]} Nf6 {[%emt 0:
00:00]} 3. Nxe5 {[%emt 0:00:05]} d6 {[%emt 0:00:05]} 4. Nf3 {[%emt 0:00:04]}
Nxe4 {[%emt 0:00:06]} 5. c4 {[%emt 0:01:41]} Nc6 {[%emt 0:00:14]} 6. d3 {
[%emt 0:00:16][%cal Yd2d3,Yd3d4,Yd4d5] C42: Petroff Defence: 3 Nxe5 and
unusual White 3rd moves.} Nf6 {[%emt 0:00:06]} 7. d4 {[%emt 0:00:04]} Be7 {
[%emt 0:00:15]} 8. d5 {[%emt 0:04:43]} Ne5 {[%emt 0:00:41]} 9. Nd4 {[%emt 0:00:
00] [#]} Bg4 $146 {[%emt 0:06:36]} ({Predecessor:} 9... O-O 10. Nc3 Bg4 11. f3
Bd7 12. Be2 c6 13. O-O cxd5 14. cxd5 Qb6 15. Kh1 Rac8 {0-1 (35) Firouzja,A 
(2793)-Nepomniachtchi,I (2766) Madrid 2022}) 10. Be2 {[%emt 0:04:45]} Bxe2 {
[%emt 0:01:03]} 11. Qxe2 {[%emt 0:01:05]} O-O {[%emt 0:01:09]} 12. Nc3 {
[%emt 0:03:50]} Re8 {[%emt 0:03:58]} 13. O-O {[%emt 0:09:00]} Bf8 {[%emt 0:00:
00]} 14. h3 {[%emt 0:05:59]} c6 {[%emt 0:10:54] The position is equal.} 15.
dxc6 {[%emt 0:05:56]} bxc6 {[%emt 0:01:43]} 16. Be3 {[%emt 0:09:38]} d5 {
[%emt 0:03:14]} 17. cxd5 {[%emt 0:01:23]} Nxd5 {[%emt 0:02:06]} 18. Nxd5 {
[%emt 0:02:24]} Qxd5 {[%emt 0:00:05]} 19. Rfd1 {[%emt 0:15:49]} a5 {[%emt 0:00:
00][%cal Ya7a5,Ya5a4]} 20. b3 {[%emt 0:07:26]} a4 {[%emt 0:03:29]} 21. Nf3 {
[%emt 0:03:20]} Nxf3+ {[%emt 0:01:51]} 22. Qxf3 {[%emt 0:00:02]} Qxf3 {[%emt 0:
00:08]} 23. gxf3 {[%emt 0:00:02]} axb3 {[%emt 0:01:00]} 24. axb3 {[%emt 0:00:
02]} Rxa1 {[%emt 0:00:40]} 25. Rxa1 $11 {[%emt 0:00:02] Endgame KRB-KRB} Rb8 {
[%emt 0:00:44]} 26. Rc1 {[%emt 0:00:33]} Rxb3 {[%emt 0:00:00][%cal Yc6c5]} 27.
Rxc6 {[%emt 0:00:07]} f6 {[%emt 0:01:28]} 28. Kg2 {[%emt 0:00:10]} Kf7 {
[%emt 0:01:30]} 29. Ra6 {[%emt 0:00:32]} Rb7 {[%emt 0:00:00]} 30. Ra4 {[%emt 0:
00:13]} g5 {[%emt 0:00:24]} 31. f4 {[%emt 0:00:13] A balanced but interesting
game. Weighted Error Value: White=0.03 (flawless) / Black=0.02 (flawless)}
1/2-1/2

[Event "44th Chess Olympiad Open 2022"]
[Site "Chennai"]
[Date "2022.08.01"]
[Round "4.3"]
[White "Santos Latasa, Jaime"]
[Black "Karthikeyan, Murali"]
[Result "1/2-1/2"]
[WhiteElo "2675"]
[BlackElo "2613"]
[Annotator "TA"]
[PlyCount "103"]
[EventDate "2022.??.??"]
[TimeControl "60"]

{[%evp 10,103,31,20,26,24,35,19,45,48,64,65,58,52,60,45,53,37,59,62,53,57,59,
54,91,91,80,42,85,85,87,87,88,89,87,78,67,70,87,83,87,83,86,87,83,81,81,81,83,
75,79,76,76,78,132,112,114,70,114,92,107,107,101,45,43,55,68,38,53,8,8,16,31,8,
8,8,25,0,0,0,0,0,0,0,0,0,0,0,0,0,0,0,0,0,0,0]} 1. e4 {[%emt 0:00:02]} c5 {
[%emt 0:00:17]} 2. Nf3 {[%emt 0:00:07]} Nc6 {[%emt 0:00:09]} 3. Bb5 {[%emt 0:
00:00]} g6 {[%emt 0:00:09]} 4. Bxc6 {[%emt 0:00:07]} dxc6 {[%emt 0:00:06]} 5.
d3 {[%emt 0:00:04]} Bg7 {[%emt 0:00:08]} 6. h3 {[%emt 0:00:05]} b6 {[%emt 0:00:
00] B31: Sicilian: 2...Nc6 3 Bb5 g6.} 7. O-O {[%emt 0:00:24]} e5 {[%emt 0:00:
00]} 8. a3 {[%emt 0:02:45]} a5 {[%emt 0:01:40]} 9. Be3 {[%emt 0:01:44]} Ne7 {
[%emt 0:02:39]} 10. Nbd2 $1 {[%emt 0:03:33][%cal Yb2b4]} Qc7 {[%emt 0:03:55]}
11. Nc4 {[%emt 0:05:37][%cal Yb2b4]} Be6 {[%emt 0:04:29]} 12. b4 {[%emt 0:00:
00]} Bxc4 {[%emt 0:08:47]} 13. dxc4 {[%emt 0:00:13] [#]} axb4 $146 {[%emt 0:00:
00]} ({Predecessor:} 13... cxb4 14. axb4 O-O 15. c5 bxc5 16. bxa5 Rxa5 17. Rxa5
Qxa5 18. Qd7 Qd8 19. Rd1 Qxd7 20. Rxd7 {1-0 (63) Stojanovic,D (2501)-Stankovic,
I (2222) Belgrade 2015}) 14. axb4 {[%emt 0:00:05] [#] Discovered Attack} Rxa1 {
[%emt 0:00:15]} 15. Qxa1 {[%emt 0:00:04]} cxb4 {[%emt 0:00:14]} 16. c5 {
[%emt 0:05:22]} bxc5 {[%emt 0:11:12]} 17. Qa8+ {[%emt 0:04:22]} Qd8 {[%emt 0:
07:12]} 18. Qa7 {[%emt 0:02:01]} O-O {[%emt 0:04:42]} 19. Bxc5 {[%emt 0:00:39]}
Re8 {[%emt 0:00:37]} 20. Rb1 {[%emt 0:05:01]} Nc8 {[%emt 0:00:00]} 21. Qb7 {
[%emt 0:01:43]} Bf8 {[%emt 0:09:16]} 22. Bxf8 {[%emt 0:05:32] White is more
active.} Kxf8 {[%emt 0:00:16]} 23. Qxc6 {[%emt 0:00:07]} Qd6 {[%emt 0:06:17]}
24. Qc4 {[%emt 0:00:37]} Nb6 {[%emt 0:06:11]} 25. Qxb4 {[%emt 0:02:54]} Qxb4 {
[%emt 0:00:06]} 26. Rxb4 $16 {[%emt 0:00:06] Endgame KRN-KRN} Nd7 {[%emt 0:00:
55]} 27. Rc4 {[%emt 0:00:30]} Ke7 {[%emt 0:00:00]} 28. Kf1 {[%emt 0:03:34]} Ra8
{[%emt 0:02:20]} 29. Ke2 {[%emt 0:00:55]} Kd6 {[%emt 0:02:28]} 30. Rc3 {
[%emt 0:01:05]} Ra4 {[%emt 0:02:39]} 31. Nd2 {[%emt 0:00:47]} f5 {[%emt 0:06:
20]} (31... Nb6 $142) 32. exf5 {[%emt 0:05:08]} gxf5 {[%emt 0:00:04]} 33. Rc8 {
[%emt 0:01:28]} f4 {[%emt 0:06:56]} 34. g4 {[%emt 0:07:27]} e4 {[%emt 0:02:09]}
35. f3 {[%emt 0:00:41]} exf3+ {[%emt 0:00:00]} 36. Nxf3 {[%emt 0:00:38]} (36.
Kf2 $16) 36... Re4+ {[%emt 0:00:31]} 37. Kd2 {[%emt 0:02:27]} Nb6 {[%emt 0:00:
20]} 38. Rd8+ {[%emt 0:01:07]} Kc5 {[%emt 0:00:53]} 39. Rd3 {[%emt 0:04:54]} (
39. Rf8 $5 {[%cal Rf8f5]}) 39... Nc4+ {[%emt 0:00:27]} 40. Kc3 {[%emt 0:00:14]}
Nb6 {[%emt 0:01:02]} 41. Ng5 {[%emt 0:34:54]} Re7 {[%emt 0:01:45]} 42. h4 {
[%emt 0:00:00]} Nc4 {[%emt 0:00:00]} 43. Rd8 {[%emt 0:00:00] [#] Black must
now prevent Rc8+.} Nd6 {[%emt 0:00:00] Against Rc8+. The position is equal.}
44. Kb2 {[%emt 0:00:00]} Re3 {[%emt 0:07:17]} 45. Nxh7 {[%emt 0:00:00]} f3 {
[%emt 0:01:31]} 46. Rf8 {[%emt 0:00:00]} Nc4+ {[%emt 0:00:58]} 47. Ka2 {
[%emt 0:00:00]} Ra3+ {[%emt 0:01:27]} 48. Kb1 {[%emt 0:00:00]} Nd2+ {[%emt 0:
00:03]} 49. Kb2 {[%emt 0:00:00]} Nc4+ {[%emt 0:00:05]} 50. Kb1 {[%emt 0:00:00]}
Nd2+ {[%emt 0:00:08]} 51. Kb2 {[%emt 0:00:00]} Nc4+ {[%emt 0:01:01]} 52. Kb1 {
[%emt 0:00:06] Weighted Error Value: White=0.07 (flawless) /Black=0.08 
(flawless)} 1/2-1/2

[Event "44th Chess Olympiad Open 2022"]
[Site "Chennai"]
[Date "2022.08.01"]
[Round "4.3"]
[White "Gupta, Abhijeet"]
[Black "Anton Guijarro, David"]
[Result "0-1"]
[WhiteElo "2627"]
[BlackElo "2667"]
[Annotator "TA"]
[PlyCount "82"]
[EventDate "2022.??.??"]
[TimeControl "60"]

{[%evp 12,82,9,0,19,20,20,11,22,12,11,9,10,21,25,19,20,15,28,8,9,11,21,0,0,-19,
-12,-24,-24,-22,-29,-31,-31,-17,-19,-14,0,0,0,-12,-14,-10,0,-40,-58,-55,-60,
-40,-47,-91,-70,-96,-104,-213,-229,-229,-222,-143,-136,-6420,-6420,-6365,-6197,
-6291,-6197,-5952,-5919,-5073,-2387,-5446,-5446,-5414,-5097]} 1. d4 {[%emt 0:
00:00]} Nf6 {[%emt 0:00:17]} 2. c4 {[%emt 0:00:21]} e6 {[%emt 0:00:22]} 3. Nf3
{[%emt 0:00:16]} d5 {[%emt 0:00:22]} 4. g3 {[%emt 0:00:30]} Bb4+ {[%emt 0:00:
00]} 5. Nbd2 {[%emt 0:00:17][%cal Yb1d2,Yd2c4,Yc4e5]} O-O {[%emt 0:00:00]} 6.
Bg2 {[%emt 0:00:05]} dxc4 {[%emt 0:00:21]} 7. Qc2 {[%emt 0:00:22]} c5 {[%emt 0:
00:32] E04: Open Catalan: 5 Nf3.} 8. dxc5 {[%emt 0:12:07]} Nc6 {[%emt 0:00:22]}
9. O-O {[%emt 0:00:51]} e5 {[%emt 0:00:31][%cal Ye6e5,Ye5e4] The position is
equal.} 10. Nxc4 {[%emt 0:03:45] aiming for Be3.} e4 $1 {[%emt 0:01:18] [#]}
11. Nfe5 $146 {[%emt 0:00:31]} ({Predecessor:} 11. Rd1 Qe7 12. Ng5 Bxc5 13. Be3
Bf5 14. Bxc5 Qxc5 15. Ne3 Qxc2 16. Nxc2 Rad8 17. Ne3 {1-0 (82) Saduakassova,D 
(2483)-Kashlinskaya,A (2488) Krasnaya Polyana 2021}) 11... Nxe5 {[%emt 0:01:34]
} 12. Nxe5 {[%emt 0:00:04] Black must now prevent a3.} Qe7 {[%emt 0:00:29]
[%csl Yc5,Ye5]} 13. Nc4 {[%emt 0:01:48] Hoping for Nd6.} Bxc5 {[%emt 0:00:44]}
14. Bg5 {[%emt 0:02:17]} Bf5 {[%emt 0:00:49]} 15. b4 {[%emt 0:19:26]} Bxb4 {
[%emt 0:20:15]} 16. Ne3 {[%emt 0:02:22]} Bg6 {[%emt 0:00:00]} 17. Rab1 {
[%emt 0:04:12] White has compensation.} a5 {[%emt 0:00:00]} 18. Qb2 {[%emt 0:
07:47]} Rfd8 {[%emt 0:03:39] Prevents Nd5.} 19. Rfd1 {[%emt 0:00:47][%cal
Ye3d5]} h6 {[%emt 0:29:11]} 20. Bh4 {[%emt 0:00:05]} Qe6 {[%emt 0:00:25]
Inhibits Ng4.} 21. a3 {[%emt 0:01:00] Strongly threatening Rxd8+.} Bc5 {
[%emt 0:00:19]} 22. Qxb7 {[%emt 0:02:08]} Bxe3 {[%emt 0:00:16]} (22... a4 {
keeps more tension.} 23. Rxd8+ Rxd8 24. Rc1 Bxe3 25. fxe3 Rd2) 23. fxe3 {
[%emt 0:01:33]} Rxd1+ {[%emt 0:02:37]} 24. Rxd1 {[%emt 0:00:06]} Re8 {[%emt 0:
00:07]} 25. Bxf6 {[%emt 0:10:17]} Qxf6 {[%emt 0:00:24]} 26. Qb5 {[%emt 0:00:05]
[%csl Ya5,Ye8]} (26. Qd7 {is interesting.} Rb8 27. Qc7 Rb3 28. Qxa5 Rxe3 29.
Qd8+) 26... Qe5 {[%emt 0:03:57]} 27. a4 {[%emt 0:04:57]} Qxb5 {[%emt 0:05:40]}
28. axb5 $15 {[%emt 0:01:14] Endgame KRB-KRB} Rb8 $1 {[%emt 0:00:04]} 29. Rd5 {
[%emt 0:00:07]} f5 {[%emt 0:03:00]} 30. b6 {[%emt 0:00:00]} a4 $1 {[%emt 0:00:
41]} (30... Rxb6 $6 31. Rxa5 Rb2 32. Bf1 $11) 31. Ra5 {[%emt 0:00:04] [#]} Be8
$1 {[%emt 0:00:49]} ({But not} 31... Rxb6 $6 32. Rxa4 Bh5 33. Bh3 $15) 32. g4 {
[%emt 0:00:34]} (32. Rxf5 $17 Bc6 33. Ra5) 32... Rxb6 $19 {[%emt 0:09:29]} ({
And not} 32... fxg4 33. Bxe4 Rxb6 34. Bd5+ Kh7 35. Be4+ Kg8 36. Bd5+ Kf8 37. e4
$17) 33. gxf5 {[%emt 0:00:18] [#]} Bc6 {[%emt 0:00:05]} 34. Kf2 {[%emt 0:04:48]
} Rb5 {[%emt 0:01:02]} 35. Rxb5 {[%emt 0:05:22] White does not recover from
this.} (35. Ra7 $17) 35... Bxb5 {[%emt 0:00:00] Black is clearly winning.} 36.
Bxe4 $17 {[%emt 0:00:03] KB-KB} Bc4 {[%emt 0:04:21]} 37. Bb1 {[%emt 0:00:28]}
Kf7 {[%emt 0:01:33]} 38. Kf3 {[%emt 0:00:00]} Kf6 {[%emt 0:00:42]} ({Wrong is} 
38... a3 $2 39. e4 $19) 39. Kf4 {[%emt 0:00:33]} Bxe2 {[%emt 0:02:15]} 40. Bc2
{[%emt 0:00:47]} a3 {[%emt 0:00:00] ( -> ...a2)} 41. Bb3 {[%emt 0:30:03]} Bd3 {
[%emt 0:30:54] Weighted Error Value: White=0.51/Black=0.01 (flawless)} 0-1

[Event "44th Chess Olympiad Open 2022"]
[Site "Chennai"]
[Date "2022.08.01"]
[Round "4.3"]
[White "Ganguly, Surya Shekhar"]
[Black "Shirov, Alexei"]
[Result "1/2-1/2"]
[WhiteElo "2608"]
[BlackElo "2704"]
[Annotator "TA"]
[PlyCount "73"]
[EventDate "2022.??.??"]
[TimeControl "60"]

{[%evp 16,73,0,0,4,2,12,10,10,10,12,7,7,4,0,5,6,6,5,10,19,19,70,66,66,9,9,10,
10,0,0,8,8,8,9,0,0,0,0,0,2,0,0,0,0,0,0,0,0,0,0,0,0,0,0,0,0,0,0,0]} 1. e4 {
[%emt 0:00:45]} e5 {[%emt 0:00:04]} 2. Nf3 {[%emt 0:00:14]} Nc6 {[%emt 0:00:05]
} 3. d4 {[%emt 0:00:11]} exd4 {[%emt 0:00:15]} 4. Nxd4 {[%emt 0:00:07]} Nf6 {
[%emt 0:00:41]} 5. Nc3 {[%emt 0:00:48]} Bb4 {[%emt 0:00:11]} 6. Nxc6 {[%emt 0:
00:00]} bxc6 {[%emt 0:00:05]} 7. Bd3 {[%emt 0:00:09][%cal Yf1d3,Yd3e4,Ye4c6]}
d5 {[%emt 0:00:17]} 8. Bd2 {[%emt 0:00:22]} O-O {[%emt 0:07:55]} 9. O-O {
[%emt 0:00:35]} Bxc3 {[%emt 0:01:17] C47: Scotch Four Knights and Four Knights
with 4 g3.} 10. Bxc3 {[%emt 0:00:24]} dxe4 $1 {[%emt 0:00:01] is recently more
successful than 10...Nxe4.} (10... Nxe4 {with more complications.} 11. Bxe4
dxe4 12. Qe2 Qe7) 11. Bxf6 {[%emt 0:00:17] [#] Remove Defender} Qxf6 {[%emt 0:
00:03]} 12. Bxe4 {[%emt 0:00:10]} Qxb2 {[%emt 0:00:03]} 13. Bxc6 {[%emt 0:00:
34]} Rb8 {[%emt 0:00:09]} 14. Rb1 {[%emt 0:00:14]} Qxb1 {[%emt 0:00:14]} 15.
Qxb1 {[%emt 0:00:04]} Rxb1 {[%emt 0:00:00]} 16. Rxb1 $11 {[%emt 0:00:03]
Endgame KRB-KRB} Rd8 {[%emt 0:00:00]} 17. Bf3 {[%emt 0:01:06]} Bf5 {[%emt 0:16:
43]} 18. Rb7 {[%emt 0:03:48][%csl Ya7,Yc7]} Bxc2 {[%emt 0:00:22]} ({Better is} 
18... g6 $11) 19. Rxc7 $14 {[%emt 0:11:30]} Be4 {[%emt 0:00:09] [#]} 20. Rxa7
$146 {[%emt 0:00:11]} (20. Be2 $1 $14) ({Predecessor:} 20. Be2 g5 21. h3 a5 22.
Ra7 Ra8 23. Re7 Bd5 24. Bf3 Bxf3 25. gxf3 f6 26. Kg2 {½-½ (37) Andreikin,D 
(2724)-Rapport,R (2762) Belgrade 2022}) 20... Bxf3 $11 {[%emt 0:00:08] The
position is equal.} 21. gxf3 $14 {[%emt 0:00:05] KR-KR} g6 {[%emt 0:00:36]} 22.
a4 {[%emt 0:02:42]} Rd3 {[%emt 0:00:56]} 23. Kg2 {[%emt 0:00:31]} Ra3 {[%emt 0:
00:05]} 24. Kg3 {[%emt 0:00:00]} Kg7 {[%emt 0:00:16]} 25. Ra6 {[%emt 0:00:28]}
h5 {[%emt 0:00:29]} 26. h4 {[%emt 0:02:57]} Ra1 {[%emt 0:01:10]} 27. Kg2 {
[%emt 0:04:08]} Ra2 {[%emt 0:00:00]} 28. f4 {[%emt 0:00:46]} Ra3 {[%emt 0:02:
20]} 29. f3 {[%emt 0:00:12][%cal Yf4f5]} Ra2+ {[%emt 0:00:03]} 30. Kg3 {
[%emt 0:01:19][%cal Yf4f5]} f5 $1 {[%emt 0:00:25]} 31. a5 {[%emt 0:00:45]} Kf7
{[%emt 0:01:13]} 32. Ra7+ {[%emt 0:00:04]} Kg8 {[%emt 0:00:06]} 33. a6 {
[%emt 0:00:08]} Kf8 {[%emt 0:00:00]} 34. Kh3 {[%emt 0:00:19]} Kg8 {[%emt 0:00:
05]} 35. Kg3 {[%emt 0:00:03]} Kf8 {[%emt 0:00:05]} 36. Kh3 {[%emt 0:00:02]} Kg8
{[%emt 0:00:05]} 37. Kg3 {[%emt 0:00:03] Weighted Error Value: White=0.07 
(flawless) /Black=0.05 (flawless)} 1/2-1/2

[Event "44th Chess Olympiad Open 2022"]
[Site "Chennai"]
[Date "2022.08.01"]
[Round "4.4"]
[White "Duda, Jan-Krzysztof"]
[Black "Deac, Bogdan-Daniel"]
[Result "1/2-1/2"]
[WhiteElo "2750"]
[BlackElo "2692"]
[Annotator "TA"]
[PlyCount "72"]
[EventDate "2022.??.??"]
[TimeControl "60"]

{[%evp 19,72,24,22,18,12,13,5,19,16,10,20,6,18,0,0,0,0,0,0,0,22,20,27,0,0,0,0,
0,0,0,0,-37,0,0,0,0,1,29,17,0,0,0,0,0,0,0,0,0,0,0,0,0,0,0,0]} 1. d4 {[%emt 0:
00:00]} Nf6 {[%emt 0:00:05]} 2. c4 {[%emt 0:00:06]} e6 {[%emt 0:00:06]} 3. Nf3
{[%emt 0:00:07]} d5 {[%emt 0:01:47]} 4. g3 {[%emt 0:00:05]} Be7 {[%emt 0:00:49]
} 5. Bg2 {[%emt 0:00:07]} O-O {[%emt 0:00:04]} 6. O-O {[%emt 0:01:09]} dxc4 {
[%emt 0:01:06]} 7. Ne5 {[%emt 0:00:00]} Nc6 {[%emt 0:01:11]} 8. Bxc6 {[%emt 0:
00:00]} bxc6 {[%emt 0:00:02]} 9. Nxc6 {[%emt 0:00:00]} Qe8 {[%emt 0:00:27]} 10.
Nxe7+ {[%emt 0:00:00]} Qxe7 {[%emt 0:00:07]} 11. b3 {[%emt 0:00:00] E05: Open
Catalan: 5 Nf3 Be7.} cxb3 {[%emt 0:14:07]} 12. Qxb3 {[%emt 0:00:01] [#] aiming
for Ba3.} Rd8 {[%emt 0:00:49]} 13. Ba3 {[%emt 0:03:15]} Qe8 {[%emt 0:02:56]}
14. Rd1 {[%emt 0:02:27]} Ba6 {[%emt 0:07:10]} 15. Nc3 {[%emt 0:00:00]} Nd5 {
[%emt 0:00:21]} 16. e4 {[%emt 0:00:00]} Rab8 {[%emt 0:00:56]} 17. Qc2 {[%emt 0:
00:00]} Nb4 {[%emt 0:00:13]} 18. Bxb4 {[%emt 0:00:00]} Rxb4 {[%emt 0:00:05]}
19. d5 {[%emt 0:09:38]} e5 {[%emt 0:16:11]} 20. Qc1 {[%emt 0:05:16] [#]} Rc4
$146 {[%emt 0:08:46]} ({Predecessor:} 20... Rd6 21. Qe3 Qb8 22. Rab1 h6 23. Qc5
Rxb1 24. Rxb1 Rb6 25. Rc1 Rb2 26. Kg2 Bd3 {½-½ (42) Hilby,C (2390)-Brown,M 
(2506) Las Vegas 2017}) 21. Qa3 {[%emt 0:05:58]} Rd6 {[%emt 0:00:00]} 22. Rab1
{[%emt 0:01:40][%cal Yc3a4]} h5 {[%emt 0:08:34][%cal Yh7h5,Yh5h4,Yh4g3]} 23.
Rb4 {[%emt 0:09:51]} Rxb4 {[%emt 0:00:00]} 24. Qxb4 {[%emt 0:00:56]} h4 {
[%emt 0:12:40]} 25. a4 {[%emt 0:23:46]} Qc8 {[%emt 0:14:54]} 26. Nb5 {[%emt 0:
13:46]} hxg3 {[%emt 0:00:00]} 27. Nxd6 {[%emt 0:11:18]} Qg4 {[%emt 0:00:00]}
28. Qb8+ {[%emt 0:00:00]} Kh7 {[%emt 0:00:04] [#]} 29. Nxf7 $1 {[%emt 0:01:13]
White wants to mate with Qh8+. The position is equal.} gxf2+ {[%emt 0:10:43]}
30. Kxf2 {[%emt 0:00:00]} Qf4+ {[%emt 0:00:15]} 31. Kg2 {[%emt 0:00:00]} Qxe4+
{[%emt 0:00:33]} 32. Kf2 {[%emt 0:00:00] Ng5+ would kill now.} Qe2+ {[%emt 0:
00:25]} 33. Kg3 {[%emt 0:00:00]} Qe3+ {[%emt 0:00:04]} 34. Kg2 {[%emt 0:00:00]}
Qe2+ {[%emt 0:01:13]} 35. Kg3 {[%emt 0:00:00] Strongly threatening Qb1+.} Qe3+
{[%emt 0:00:33]} 36. Kg2 {[%emt 0:00:00] Black must now prevent Qh8+.} Qe2+ {
[%emt 0:00:38] An even fight not without its subleties. Weighted Error Value:
White=0.05 (flawless) /Black=0.03 (flawless)} 1/2-1/2

[Event "44th Chess Olympiad Open 2022"]
[Site "Chennai"]
[Date "2022.08.01"]
[Round "4.4"]
[White "Piorun, Kacper"]
[Black "Parligras, Mircea-Emilian"]
[Result "1/2-1/2"]
[WhiteElo "2636"]
[BlackElo "2576"]
[Annotator "TA"]
[PlyCount "75"]
[EventDate "2022.??.??"]
[TimeControl "60"]

{[%evp 11,75,0,0,-12,-12,-6,-10,-6,-2,-29,16,-10,-17,-14,-9,-24,-8,-33,-34,-39,
-18,-47,-42,-63,-44,-61,-64,-113,-115,-263,-126,-133,-128,-123,-122,-129,-128,
-125,-104,-148,0,0,0,0,-6,-41,-45,-37,-38,-37,54,65,52,72,54,65,39,0,0,0,0,0,0,
0,0,0]} 1. d4 {[%emt 0:00:07]} Nf6 {[%emt 0:00:10]} 2. c4 {[%emt 0:00:06]} e6 {
[%emt 0:00:05]} 3. Nc3 {[%emt 0:00:21]} Bb4 {[%emt 0:00:07]} 4. e3 {[%emt 0:00:
00]} O-O {[%emt 0:00:13]} 5. Bd3 {[%emt 0:00:08]} d5 {[%emt 0:00:12]} 6. cxd5 {
[%emt 0:00:08]} exd5 {[%emt 0:00:17]} 7. a3 {[%emt 0:00:08] E48: Nimzo-Indian:
Rubinstein: 5 Bd3 d5 including 6 Ne2, but excluding 6 a3.} Bd6 {[%emt 0:01:21]}
8. Qc2 {[%emt 0:00:13]} b6 {[%emt 0:04:56]} 9. b4 {[%emt 0:00:41][%cal Yb2b4,
Yb4b5]} c6 {[%emt 0:03:17]} 10. Nge2 {[%emt 0:03:52] [#]} Ba6 $146 {[%emt 0:07:
11]} ({Predecessor:} 10... a5 11. b5 c5 12. O-O Bb7 13. Ng3 Nbd7 14. Qe2 Rc8
15. Bb2 Re8 16. Qf3 g6 {0-1 (31) Aradhya,G (2236)-Ponkratov,P (2641) Guwahati
2022}) 11. b5 {[%emt 0:06:36]} Bb7 {[%emt 0:00:33]} 12. O-O {[%emt 0:00:00]} c5
{[%emt 0:07:38]} 13. Bb2 {[%emt 0:08:46]} Nbd7 {[%emt 0:12:43]} 14. Ng3 {
[%emt 0:02:19]} Re8 {[%emt 0:00:00]} 15. Rfe1 {[%emt 0:09:57]} Rc8 {[%emt 0:00:
00]} 16. Qd1 {[%emt 0:07:41]} g6 {[%emt 0:00:14]} 17. Be2 {[%emt 0:00:00]} cxd4
{[%emt 0:07:36]} 18. exd4 {[%emt 0:01:54]} Ne4 {[%emt 0:03:03]} 19. Ngxe4 {
[%emt 0:11:14]} (19. Rc1 $15 {should be considered.}) 19... dxe4 $17 {[%emt 0:
00:13]} 20. Bf1 {[%emt 0:00:14]} (20. Bg4 $17) 20... Qg5 {[%emt 0:00:00]} (
20... Qh4 21. g3 Qg5 22. Bg2 $15) (20... e3 $1 $19 {has better winning chances.
( -> ...Qh4)} 21. Qe2 Nc5 $1) 21. Bc1 {[%emt 0:12:01]} Qf5 {[%emt 0:05:03]} ({
Worse is} 21... Qh4 22. g3 Qf6 23. Bb2 $15) ({Stronger than} 21... Bxh2+ 22.
Kxh2 Qh4+ 23. Kg1 Rxc3 24. Re3 $17) 22. Bd2 {[%emt 0:00:00]} Nf6 {[%emt 0:00:
59]} 23. h3 {[%emt 0:01:35] Inhibits Ng4.} h5 {[%emt 0:00:00][%cal Yh7h5,Yh5h4]
} 24. Qb3 {[%emt 0:01:13]} h4 {[%emt 0:01:05]} 25. Nd1 {[%emt 0:03:22][%cal
Yc3d1,Yd1e3,Ye3g4,Yg4h6] [#]} Bb8 {[%emt 0:10:31]} (25... Nd5 $1 $17 {[%cal
Ye4e3] Threatens to win with ...e3!} 26. Be2 Qf6) 26. Ne3 $1 $11 {[%emt 0:03:
03]} Qd7 {[%emt 0:00:00]} (26... Bh2+ $2 27. Kxh2 Qxf2 28. Re2 (28. Nc4 e3 $16)
28... Qg3+ 29. Kg1 $18) 27. Bc4 $1 {[%emt 0:01:37]} Qc7 {[%emt 0:00:34]} 28.
Rac1 {[%emt 0:01:12]} Qh2+ {[%emt 0:00:00]} 29. Kf1 {[%emt 0:00:01]} Rc7 {
[%emt 0:03:01]} 30. Ke2 {[%emt 0:01:36]} Nh5 {[%emt 0:02:22]} ({Black should
play} 30... Kg7 $15) 31. Ng4 $14 {[%emt 0:00:00]} Qxg2 {[%emt 0:02:33][%cal
Yc7c4] [#] And now ...Rxc4! would win.} 32. Bxf7+ {[%emt 0:00:07] Decoy} Rxf7 {
[%emt 0:01:19]} 33. Nh6+ {[%emt 0:00:00] Pin, Deflection, Double Attack} Kh8 {
[%emt 0:02:20]} 34. Qxf7 {[%emt 0:07:09] Really sharp!} Nf4+ $1 {[%emt 0:00:08]
Decoy. The position is equal.} 35. Bxf4 {[%emt 0:00:09]} Qf3+ {[%emt 0:00:04]}
36. Kf1 {[%emt 0:00:03]} Qh1+ {[%emt 0:00:11]} 37. Ke2 {[%emt 0:00:03]} Qf3+ {
[%emt 0:00:00]} 38. Kf1 {[%emt 0:00:04] Whites escaped into a draw. Weighted
Error Value: White=0.13 (very precise) /Black=0.18 (very precise)} 1/2-1/2